bitfinex/quotes_BTCUSD_20251201
["timestamp","ask_amount","ask_price","bid_price","bid_amount"]
[1764553631885,0.69574724,87443.0,87442.0,0.00087563]
[1764553632069,0.6272981,87443.0,87442.0,0.00087563]
[1764553632743,0.6826481,87443.0,87442.0,0.00087563]
[1764553632941,0.6712481,87443.0,87442.0,0.00087563]
[1764553633347,0.69578705,87443.0,87442.0,0.00087563]
[1764553633549,0.69581119,87443.0,87442.0,0.00087563]
[1764553634112,0.70721119,87443.0,87442.0,0.00087563]
[1764553635022,0.76973418,87443.0,87442.0,0.00087563]
[1764553635521,0.75833418,87443.0,87442.0,0.00087563]
[1764553635750,0.81070281,87443.0,87442.0,0.00087563]
[1764553635952,0.69997119,87443.0,87442.0,0.00087563]
[1764553636148,0.70721119,87443.0,87442.0,0.00087563]
[1764553636556,0.70421119,87443.0,87442.0,0.00087563]
[1764553637053,0.70921119,87443.0,87442.0,0.00187563]
[1764553637257,0.70521119,87443.0,87442.0,0.00087563]
[1764553637486,0.71121119,87443.0,87442.0,0.00087563]
[1764553637617,0.71021119,87443.0,87442.0,0.00087563]
[1764553637819,0.71121119,87443.0,87442.0,0.00087563]
[1764553638221,0.56315181,87431.0,87430.0,0.00051805]
[1764553638420,0.628183,87431.0,87430.0,0.00051805]
[1764553638654,0.914253,87431.0,87430.0,0.00051805]
[1764553638978,0.97576386,87431.0,87430.0,0.00051805]
[1764553639312,0.914253,87431.0,87430.0,0.00051805]
[1764553639529,0.22880415,87411.0,87410.0,0.0004]
[1764553639731,0.29229639,87411.0,87410.0,0.00045417]
[1764553639968,0.35770534,87411.0,87410.0,0.00045417]
[1764553640131,0.34630534,87411.0,87410.0,0.00045417]
[1764553640338,0.35770534,87411.0,87410.0,0.00045417]
[1764553640738,0.34630534,87411.0,87410.0,0.00045417]
[1764553640939,0.35770534,87411.0,87410.0,0.00045417]
[1764553641142,0.34630534,87411.0,87410.0,0.00045417]
[1764553641342,0.34730534,87411.0,87410.0,0.00145417]
[1764553641587,0.35870534,87411.0,87410.0,0.00145417]
[1764553642187,0.3023743,87411.0,87410.0,9.29e-05]
[1764553642518,0.3096143,87411.0,87410.0,9.29e-05]
[1764553642717,0.24021462,87407.0,87406.0,0.09336483]
[1764553642925,0.24709686,87407.0,87406.0,0.09348339]
[1764553643305,0.26206686,87407.0,87406.0,0.09348339]
[1764553643440,0.32747581,87407.0,87406.0,0.09348339]
[1764553643633,0.33471581,87407.0,87406.0,0.09348339]
[1764553643877,0.29384581,87407.0,87406.0,0.09348339]
[1764553644190,0.00888224,87407.0,87406.0,0.41344063]
[1764553644363,0.002,87407.0,87406.0,0.41344063]
[1764553644543,0.002,87407.0,87406.0,0.5165493]
[1764553644749,0.002,87407.0,87406.0,0.5279493]
[1764553644949,0.002,87407.0,87406.0,0.5165493]
[1764553645178,0.002,87407.0,87406.0,0.5279493]
[1764553645580,0.01143798,87428.0,87421.0,0.01143889]
[1764553645755,0.22876961,87425.0,87419.0,0.01143916]
[1764553645965,0.04297541,87427.0,87411.0,0.03973]
[1764553645966,0.01143942,87417.0,87411.0,0.0114402]
[1764553646169,0.01143902,87420.0,87412.0,0.01144007]
[1764553646409,0.01834681,87419.0,87411.0,0.0114402]
[1764553646607,0.01143955,87416.0,87412.0,0.01144007]
[1764553646807,0.01143994,87413.0,87405.0,0.10874667]
[1764553647061,0.01143994,87413.0,87396.0,0.22884083]
[1764553647062,0.228812,87408.0,87406.0,0.09348339]
[1764553647265,0.228812,87408.0,87406.0,0.19659206]
[1764553647445,0.07513927,87407.0,87406.0,0.19659206]
[1764553647646,0.11116403,87407.0,87406.0,0.09348339]
[1764553648271,0.11222403,87407.0,87406.0,0.09348339]
[1764553648627,0.12362403,87407.0,87406.0,0.09348339]
[1764553649066,0.03131403,87407.0,87406.0,0.09460983]
[1764553649259,0.00668927,87407.0,87406.0,0.09460983]
[1764553649855,0.00968927,87407.0,87406.0,0.09460983]
[1764553650152,0.00668927,87407.0,87406.0,0.09460983]
[1764553650520,0.00868927,87407.0,87406.0,0.09460983]
[1764553651400,0.002,87407.0,87406.0,0.35227707]
[1764553651587,0.002,87407.0,87406.0,0.49511574]
[1764553653513,0.002,87407.0,87406.0,0.50651574]
[1764553654102,0.002,87407.0,87406.0,0.49511574]
[1764553655556,0.01143968,87415.0,87412.0,0.01144007]
[1764553655773,0.01143916,87419.0,87414.0,0.24023611]
[1764553655975,0.01143916,87419.0,87414.0,0.24023552]
[1764553656170,0.01143942,87417.0,87414.0,0.01143981]
[1764553656385,0.24022317,87419.0,87414.0,0.01143981]
[1764553656588,0.0559485,87443.0,87431.0,0.01143759]
[1764553656766,0.01491,87443.0,87437.0,0.0114368]
[1764553656956,0.24016444,87441.0,87435.0,0.02885]
[1764553657150,0.01143654,87439.0,87434.0,0.22874373]
[1764553657485,0.01143654,87439.0,87435.0,0.02162]
[1764553657688,0.24016444,87441.0,87437.0,0.0114368]
[1764553657869,0.07245624,87455.0,87440.0,0.22872605]
[1764553658069,0.00669192,87448.0,87444.0,0.22871529]
[1764553658331,0.04222043,87457.0,87444.0,0.22871529]
[1764553658332,0.03217484,87452.0,87445.0,0.01143575]
[1764553658540,0.22871257,87446.0,87440.0,0.11454508]
[1764553658691,0.24015334,87445.0,87440.0,0.10310867]
[1764553658892,0.001,87441.0,87440.0,0.10310867]
[1764553659101,0.01143562,87446.0,87442.0,0.01143615]
[1764553659280,0.01143353,87462.0,87455.0,0.01143445]
[1764553659498,0.01143366,87461.0,87457.0,0.01143419]
[1764553659692,0.01143366,87461.0,87454.0,0.01143458]
[1764553659898,0.01143419,87457.0,87453.0,0.01143471]
[1764553660197,0.01143419,87457.0,87452.0,0.24013172]
[1764553660373,0.01143419,87457.0,87453.0,0.01143471]
[1764553660685,0.01143458,87454.0,87451.0,0.10310867]
[1764553661036,0.01143432,87456.0,87451.0,0.34324302]
[1764553661234,0.01143432,87456.0,87453.0,0.01143471]
[1764553661958,0.01143379,87460.0,87455.0,0.01143445]
[1764553662178,0.2401125,87459.0,87453.0,0.01143471]
[1764553662377,0.01143458,87454.0,87451.0,0.10410867]
[1764553662696,0.22869427,87453.0,87451.0,0.10310867]
[1764553663025,0.01143432,87456.0,87451.0,0.10310867]
[1764553663026,0.003,87456.0,87455.0,0.01143445]
[1764553663146,0.01143379,87460.0,87455.0,0.01143445]
[1764553663341,0.01143419,87457.0,87454.0,0.01143458]
[1764553663974,0.00011836,87462.0,87459.0,0.01143392]
[1764553664176,0.00011836,87462.0,87459.0,0.24010991]
[1764553664377,0.00011836,87462.0,87459.0,0.01143392]
[1764553665381,0.00011836,87462.0,87460.0,0.22867596]
[1764553665704,0.00011836,87462.0,87461.0,0.02885]
[1764553665982,0.00511836,87462.0,87461.0,0.06858]
[1764553666328,0.00611836,87462.0,87461.0,0.06858]
[1764553666526,0.00111836,87462.0,87461.0,0.06858]
[1764553666731,0.00111836,87462.0,87461.0,0.17732667]
[1764553666932,0.00311836,87462.0,87461.0,0.17832667]
[1764553667765,0.00311836,87462.0,87461.0,0.18972667]
[1764553667994,0.00311836,87462.0,87461.0,0.19696667]
[1764553668744,0.00011836,87462.0,87461.0,0.19596667]
[1764553669001,0.00111836,87462.0,87461.0,0.19696667]
[1764553669548,0.00111836,87462.0,87461.0,0.51996667]
[1764553670301,0.00111836,87462.0,87461.0,0.91996667]
[1764553670710,0.00229329,87500.0,87497.0,0.24000699]
[1764553670938,0.0026885,87500.0,87497.0,0.24000699]
[1764553671152,0.0026885,87500.0,87498.0,0.00506]
[1764553671365,0.0026885,87500.0,87493.0,0.01954]
[1764553671589,0.0114287,87499.0,87493.0,0.01954]
[1764553671810,0.01142883,87498.0,87493.0,0.03096948]
[1764553672059,0.0036885,87500.0,87495.0,0.01142922]
[1764553672292,0.24000548,87498.0,87497.0,0.001]
[1764553672523,0.24000548,87498.0,87493.0,0.01954]
[1764553672524,0.01142896,87497.0,87493.0,0.01954]
[1764553672713,0.01143013,87488.0,87483.0,0.10310867]
[1764553672858,0.0114304,87486.0,87483.0,0.10310867]
[1764553673052,0.0194,87494.0,87485.0,0.22860904]
[1764553673255,0.0026885,87500.0,87496.0,0.01142909]
[1764553673455,0.0114287,87499.0,87496.0,0.01142909]
[1764553673657,0.0026885,87500.0,87499.0,0.02583]
[1764553673871,0.0026885,87500.0,87493.0,0.10310867]
[1764553674098,0.0026885,87500.0,87494.0,0.01142935]
[1764553674321,0.0194,87494.0,87493.0,0.10310867]
[1764553674525,0.001,87497.0,87493.0,0.10310867]
[1764553674768,0.001,87497.0,87493.0,0.11453815]
[1764553674973,0.01242896,87497.0,87493.0,0.34512647]
[1764553675232,0.0106885,87500.0,87493.0,0.34512647]
[1764553675233,0.0026885,87500.0,87498.0,0.22857408]
[1764553675396,0.0026885,87500.0,87499.0,0.06717]
[1764553675605,0.0026885,87500.0,87499.0,0.07857]
[1764553676958,0.0026885,87500.0,87499.0,0.06717]
[1764553677552,0.0026885,87500.0,87499.0,0.07441]
[1764553677972,0.0056885,87500.0,87499.0,0.07541]
[1764553679246,0.0056885,87500.0,87499.0,0.31538404]
[1764553680146,0.0056885,87500.0,87499.0,0.63838404]
[1764553680367,0.0056885,87500.0,87499.0,0.62698404]
[1764553681214,0.0056885,87500.0,87499.0,1.10090703]
[1764553681860,0.0002,87530.0,87527.0,0.01142504]
[1764553682033,0.00031851,87530.0,87529.0,0.0356]
[1764553682240,0.00031851,87530.0,87527.0,0.10310867]
[1764553682388,0.00087453,87528.0,87527.0,0.10310867]
[1764553682591,0.22937283,87528.0,87527.0,0.10310867]
[1764553683408,0.22937283,87528.0,87517.0,0.01954]
[1764553683409,0.01142569,87522.0,87517.0,0.11453502]
[1764553683628,0.2399424,87521.0,87518.0,0.10874667]
[1764553684143,0.01142569,87522.0,87518.0,0.12017289]
[1764553684291,0.01142556,87523.0,87518.0,0.10874667]
[1764553684496,0.25564426,87519.0,87506.0,0.01954]
[1764553684728,0.23998627,87505.0,87504.0,0.10310867]
[1764553684989,0.01142804,87504.0,87499.0,0.0114]
[1764553685128,0.01142791,87505.0,87501.0,0.01142844]
[1764553685326,0.01142831,87502.0,87499.0,0.10310867]
[1764553685534,0.23999497,87502.0,87499.0,0.10310867]
[1764553685737,0.01142804,87504.0,87499.0,0.10310867]
[1764553685941,0.01142817,87503.0,87499.0,0.10310867]
[1764553686188,0.01142831,87502.0,87499.0,0.10310867]
[1764553686387,0.22856881,87501.0,87499.0,0.10310867]
[1764553686991,0.01142974,87491.0,87490.0,0.10310867]
[1764553687165,0.01142935,87494.0,87490.0,0.10310867]
[1764553687599,0.01142935,87494.0,87490.0,0.11453854]
[1764553687806,0.22859494,87491.0,87490.0,0.10310867]
[1764553687979,0.03082948,87493.0,87490.0,0.10310867]
[1764553688191,0.01142909,87496.0,87491.0,0.01142974]
[1764553688392,0.01142909,87496.0,87492.0,0.01142961]
[1764553688393,0.001,87494.0,87492.0,0.01142961]
[1764553688607,0.001,87494.0,87492.0,0.24002165]
[1764553688808,0.00011844,87502.0,87495.0,0.01142922]
[1764553689007,0.00011844,87502.0,87496.0,0.22858187]
[1764553689277,0.00011844,87502.0,87497.0,0.22857926]
[1764553689501,0.00011844,87502.0,87499.0,0.0114287]
[1764553689696,0.00011844,87502.0,87500.0,0.22857142]
[1764553689933,0.00011844,87502.0,87501.0,0.04868688]
[1764553690132,0.00011844,87502.0,87501.0,0.09002688]
[1764553691118,0.00411844,87502.0,87501.0,0.09102688]
[1764553691321,0.00411844,87502.0,87501.0,0.06817]
[1764553691527,0.00011844,87502.0,87501.0,0.06717]
[1764553691727,0.00411844,87502.0,87501.0,0.06817]
[1764553692157,0.00011844,87502.0,87501.0,0.06717]
[1764553692587,0.00011844,87502.0,87501.0,0.02583]
[1764553693526,0.00411844,87502.0,87501.0,0.02683]
[1764553693724,0.00011844,87502.0,87501.0,0.02583]
[1764553694162,0.00411844,87502.0,87501.0,0.02683]
[1764553694654,0.00411844,87502.0,87501.0,0.06817]
[1764553694853,0.23268464,87502.0,87501.0,0.001]
[1764553695255,0.00411844,87502.0,87501.0,0.001]
[1764553695460,0.00411844,87502.0,87501.0,0.29815881]
[1764553695658,0.00411844,87502.0,87501.0,0.0281]
[1764553695857,0.23268464,87502.0,87501.0,0.001]
[1764553696061,0.25980464,87502.0,87501.0,0.001]
[1764553696268,0.26648684,87502.0,87501.0,0.001]
[1764553696966,0.62898684,87502.0,87501.0,0.001]
[1764553697175,0.65354968,87502.0,87501.0,0.001]
[1764553697763,0.66078968,87502.0,87501.0,0.001]
[1764553697973,0.03136348,87502.0,87495.0,0.03092922]
[1764553698176,0.01142857,87500.0,87495.0,0.0195]
[1764553698396,0.0066822,87499.0,87495.0,0.0195]
[1764553698594,0.24668768,87498.0,87495.0,0.0195]
[1764553698799,0.22861666,87483.0,87465.0,0.38425]
[1764553699006,0.01143118,87480.0,87475.0,0.10874667]
[1764553699207,0.01979,87489.0,87475.0,0.10874667]
[1764553699208,0.01142909,87496.0,87483.0,0.01143079]
[1764553699386,0.01142948,87493.0,87484.0,0.02286132]
[1764553699585,0.01142974,87491.0,87486.0,0.0114304]
[1764553699908,0.01142909,87496.0,87484.0,0.02286132]
[1764553699909,0.0066791,87490.0,87487.0,0.03429079]
[1764553700107,0.01142961,87492.0,87487.0,0.02286053]
[1764553700316,0.00667828,87491.0,87489.0,0.02766]
[1764553700875,0.01142948,87493.0,87489.0,0.03909]
[1764553701119,0.003,87490.0,87489.0,0.24003016]
[1764553701432,0.01142778,87506.0,87501.0,0.0195]
[1764553701574,0.22855474,87507.0,87501.0,0.27572881]
[1764553701778,0.00024992,87508.0,87501.0,0.27572881]
[1764553701779,0.00024992,87508.0,87501.0,0.31743881]
[1764553702000,0.01142778,87506.0,87501.0,0.31743881]
[1764553702232,0.00692941,87508.0,87501.0,0.31743881]
[1764553702233,0.00024992,87508.0,87501.0,0.31743881]
[1764553702536,0.01142804,87504.0,87501.0,0.0195]
[1764553702835,0.01142765,87507.0,87501.0,0.0195]
[1764553703135,0.01154675,87502.0,87498.0,0.01142883]
[1764553703338,0.00311844,87502.0,87501.0,0.02866]
[1764553703634,0.00011844,87502.0,87501.0,0.05051688]
[1764553703935,0.00111844,87502.0,87501.0,0.02866]
[1764553704331,0.00111844,87502.0,87501.0,0.13176867]
[1764553704900,0.00111844,87502.0,87501.0,0.10410867]
[1764553705084,0.22968464,87502.0,87501.0,0.10410867]
[1764553706242,0.29688464,87502.0,87501.0,0.001]
[1764553706626,0.30355579,87502.0,87501.0,0.001]
[1764553706799,0.31495579,87502.0,87501.0,0.001]
[1764553707236,0.30355579,87502.0,87501.0,0.001]
[1764553710189,0.54875579,87502.0,87501.0,0.001]
[1764553710383,0.54208464,87502.0,87501.0,0.001]
[1764553710565,0.55348464,87502.0,87501.0,0.001]
[1764553711534,0.28541844,87502.0,87501.0,0.001]
[1764553711732,0.27401844,87502.0,87501.0,0.001]
[1764553711910,0.31399844,87502.0,87501.0,0.001]
[1764553712662,0.32539844,87502.0,87501.0,0.001]
[1764553712875,0.31399844,87502.0,87501.0,0.001]
[1764553713087,0.32539844,87502.0,87501.0,0.001]
[1764553713362,0.31399844,87502.0,87501.0,0.001]
[1764553713861,0.24631844,87502.0,87501.0,0.001]
[1764553714004,0.24631844,87502.0,87501.0,0.14782867]
[1764553715747,0.00111844,87502.0,87501.0,0.42201748]
[1764553715951,0.00111844,87502.0,87501.0,0.43341748]
[1764553716902,0.00011844,87502.0,87501.0,0.43241748]
[1764553717081,0.00111844,87502.0,87501.0,0.42201748]
[1764553717286,0.00011844,87502.0,87501.0,0.43241748]
[1764553719094,0.00111844,87502.0,87501.0,0.43541748]
[1764553719288,0.00011844,87502.0,87501.0,0.43341748]
[1764553719575,0.00011844,87502.0,87501.0,0.37639748]
[1764553719749,0.00111844,87502.0,87501.0,0.38763748]
[1764553720092,0.00111844,87502.0,87501.0,0.15906867]
[1764553720324,0.00111844,87502.0,87501.0,0.23170555]
[1764553720550,0.00011844,87502.0,87501.0,0.20456185]
[1764553720725,0.00011844,87502.0,87501.0,0.21530555]
[1764553720928,0.00111844,87502.0,87501.0,0.19644867]
[1764553722342,0.00011844,87502.0,87501.0,0.19244867]
[1764553722568,0.00111844,87502.0,87501.0,0.19644867]
[1764553722786,0.00011844,87502.0,87501.0,0.19244867]
[1764553722939,0.00011844,87502.0,87501.0,0.15406867]
[1764553723139,0.00111844,87502.0,87501.0,0.15606867]
[1764553723812,0.00111844,87502.0,87501.0,0.10510867]
[1764553724096,0.31430464,87502.0,87501.0,0.002]
[1764553724302,0.32570464,87502.0,87501.0,0.002]
[1764553724594,0.31430464,87502.0,87501.0,0.002]
[1764553724792,0.32570464,87502.0,87501.0,0.002]
[1764553725157,0.22858971,87493.0,87492.0,0.10310867]
[1764553725380,0.25539971,87493.0,87492.0,0.10310867]
[1764553725566,0.29537971,87493.0,87492.0,0.10310867]
[1764553726631,0.29837971,87493.0,87492.0,0.10410867]
[1764553727398,0.003,87493.0,87492.0,0.10410867]
[1764553727744,0.23158971,87493.0,87492.0,0.10410867]
[1764553727936,0.29511971,87493.0,87492.0,0.10410867]
[1764553731951,0.23258971,87493.0,87492.0,0.10410867]
[1764553733897,0.23258971,87493.0,87492.0,0.001]
[1764553734511,0.25800971,87493.0,87492.0,0.001]
[1764553735269,0.23258971,87493.0,87492.0,0.001]
[1764553736400,0.004,87493.0,87492.0,0.06499]
[1764553736535,0.004,87493.0,87492.0,0.08784923]
[1764553736739,0.004,87493.0,87492.0,0.09924923]
[1764553737037,0.004,87493.0,87492.0,0.06499]
[1764553737038,0.003,87493.0,87492.0,0.06499]
[1764553737644,0.01142896,87497.0,87494.0,0.01142935]
[1764553737843,0.01142896,87497.0,87491.0,0.11846841]
[1764553738208,0.01142896,87497.0,87494.0,0.01142935]
[1764553738341,0.2452,87499.0,87496.0,0.26642844]
[1764553739179,0.001,87497.0,87496.0,0.26642844]
[1764553739396,0.2452,87499.0,87498.0,0.02642]
[1764553739759,0.48720378,87499.0,87496.0,0.001]
[1764553740940,0.48720378,87499.0,87491.0,0.15603841]
[1764553740941,0.22859232,87492.0,87491.0,0.10310867]
[1764553741080,0.22859232,87492.0,87472.0,0.01872]
[1764553741081,0.24004937,87482.0,87481.0,0.10310867]
[1764553741394,0.24004937,87482.0,87471.0,0.35606388]
[1764553741395,0.22864459,87472.0,87471.0,0.10874667]
[1764553741705,0.01143131,87479.0,87471.0,0.10874667]
[1764553741706,0.00724,87487.0,87481.0,0.02642]
[1764553741934,0.04853909,87496.0,87481.0,0.01862]
[1764553742146,0.22861845,87482.0,87477.0,0.11450867]
[1764553742361,0.01143236,87471.0,87468.0,0.10310867]
[1764553742553,0.001,87472.0,87471.0,0.006]
[1764553742761,0.01143222,87472.0,87468.0,0.10350388]
[1764553742971,0.01143236,87471.0,87468.0,0.10350388]
[1764553743112,0.01143222,87472.0,87468.0,0.10350388]
[1764553743332,0.02542,87469.0,87468.0,0.10350388]
[1764553743733,0.24007956,87471.0,87468.0,0.10350388]
[1764553744585,0.24008169,87471.0,87468.0,0.10350388]
[1764553744812,0.001,87469.0,87468.0,0.10750388]
[1764553745012,0.24008169,87471.0,87468.0,0.10350388]
[1764553745157,0.24008036,87471.0,87468.0,0.10350388]
[1764553745503,0.24108036,87471.0,87468.0,0.10750388]
[1764553745726,0.22860699,87487.0,87471.0,0.01143236]
[1764553745903,0.00724,87487.0,87479.0,0.01862]
[1764553746114,0.24005028,87482.0,87479.0,0.01862]
[1764553746320,0.01143092,87482.0,87479.0,0.01862]
[1764553746511,0.01143092,87482.0,87479.0,0.03005131]
[1764553746710,0.22861379,87484.0,87479.0,0.03005131]
[1764553746711,0.24004445,87484.0,87479.0,0.03005131]
[1764553746941,0.01143079,87483.0,87479.0,0.03005131]
[1764553747295,0.01143026,87487.0,87480.0,0.01143118]
[1764553747494,0.0114304,87486.0,87481.0,0.01143105]
[1764553747716,0.01142909,87496.0,87486.0,0.02642]
[1764553747916,0.01143,87489.0,87486.0,0.02642]
[1764553748086,0.22860539,87487.0,87486.0,0.02642]
[1764553748286,0.01143,87489.0,87486.0,0.02642]
[1764553748914,0.01142987,87490.0,87488.0,0.02642]
[1764553749085,0.22860016,87489.0,87487.0,0.01862]
[1764553750055,0.01142987,87490.0,87488.0,0.02642]
[1764553750455,0.001,87489.0,87488.0,0.02642]
[1764553750658,0.01142935,87494.0,87490.0,0.01142987]
[1764553750881,0.22859224,87493.0,87490.0,0.02642]
[1764553751103,0.01142974,87491.0,87488.0,0.10310867]
[1764553751527,0.240025,87491.0,87488.0,0.10310867]
[1764553751703,0.001,87489.0,87488.0,0.10610867]
[1764553752030,0.240025,87491.0,87488.0,0.10310867]
[1764553752264,0.241025,87491.0,87488.0,0.10610867]
[1764553753350,0.241025,87491.0,87488.0,0.10310867]
[1764553753524,0.22859981,87490.0,87488.0,0.10310867]
[1764553753753,0.001,87489.0,87488.0,0.10510867]
[1764553754024,0.001,87489.0,87476.0,0.27763411]
[1764553754025,0.01143066,87484.0,87476.0,0.11454037]
[1764553754250,0.24004663,87483.0,87478.0,0.01143144]
[1764553754662,0.24004663,87483.0,87479.0,0.02821131]
[1764553754869,0.01143157,87477.0,87467.0,0.10310867]
[1764553755025,0.01143196,87474.0,87470.0,0.12017916]
[1764553755377,0.01143209,87473.0,87470.0,0.10874667]
[1764553755586,0.22861021,87486.0,87479.0,0.01143131]
[1764553755785,0.24004477,87484.0,87478.0,0.01678]
[1764553756061,0.24004477,87484.0,87474.0,0.03785196]
[1764553756062,0.01143157,87477.0,87468.0,0.01182796]
[1764553756234,0.01143157,87477.0,87470.0,0.10874667]
[1764553756489,0.01143222,87472.0,87471.0,0.10874667]
[1764553756697,0.01143301,87466.0,87462.0,0.00724]
[1764553756872,0.01143301,87466.0,87462.0,0.01867353]
[1764553757077,0.01143314,87465.0,87460.0,0.01143379]
[1764553757253,0.01143327,87464.0,87461.0,0.01143366]
[1764553757456,0.0114334,87463.0,87458.0,0.01143405]
[1764553757656,0.01143327,87464.0,87460.0,0.01143379]
[1764553757858,0.01143327,87464.0,87461.0,0.01143366]
[1764553758275,0.24009673,87465.0,87461.0,0.01143366]
[1764553758495,0.001,87464.0,87461.0,0.01643366]
[1764553758882,0.001,87464.0,87463.0,0.02672]
[1764553759317,0.001,87464.0,87463.0,0.06316]
[1764553759520,0.01143275,87468.0,87464.0,0.01143327]
[1764553759898,0.01143222,87472.0,87467.0,0.02821288]
[1764553760250,0.01143236,87471.0,87467.0,0.02821288]
[1764553760798,0.01143249,87470.0,87467.0,0.02821288]
[1764553761222,0.22864983,87470.0,87468.0,0.0228655]
[1764553761562,0.24008232,87470.0,87467.0,0.02821288]
[1764553761754,0.01143236,87471.0,87467.0,0.02821288]
[1764553762381,0.24005148,87482.0,87471.0,0.01143236]
[1764553762580,0.22862299,87481.0,87479.0,0.01862]
[1764553763542,0.2452,87486.0,87481.0,0.01143105]
[1764553763697,0.01142987,87490.0,87485.0,0.1468972]
[1764553763934,0.2400327,87489.0,87485.0,0.1468972]
[1764553764120,0.01182484,87490.0,87486.0,0.2400384]
[1764553764284,0.01182484,87490.0,87487.0,0.01143026]
[1764553764487,0.01143,87489.0,87485.0,0.10874667]
[1764553764689,0.01143026,87487.0,87483.0,0.01143079]
[1764553765042,0.00039497,87490.0,87479.0,0.01862]
[1764553765185,0.00039497,87490.0,87484.0,0.01143066]
[1764553765393,0.00039497,87490.0,87489.0,0.22860016]
[1764553765625,0.00039497,87490.0,87489.0,0.02953]
[1764553765804,0.00039497,87490.0,87489.0,0.07235]
[1764553766003,0.00139497,87490.0,87489.0,0.07235]
[1764553766207,0.00039497,87490.0,87489.0,0.07235]
[1764553766443,0.00039497,87490.0,87489.0,0.08375]
[1764553766610,0.00139497,87490.0,87489.0,0.08675]
[1764553766793,0.00039497,87490.0,87489.0,0.08375]
[1764553767202,0.00139497,87490.0,87489.0,0.08675]
[1764553767399,0.00139497,87490.0,87489.0,0.07535]
[1764553768702,0.00139497,87490.0,87489.0,0.03253]
[1764553768904,0.00139497,87490.0,87489.0,0.23160016]
[1764553769715,0.00139497,87490.0,87489.0,0.003]
[1764553770139,0.00139497,87490.0,87489.0,0.30395016]
[1764553770345,0.00139497,87490.0,87486.0,0.0114304]
[1764553770702,0.00139497,87490.0,87489.0,0.01189]
[1764553770842,0.00139497,87490.0,87489.0,0.24049016]
[1764553772158,0.00139497,87490.0,87489.0,0.01189]
[1764553773872,0.00139497,87490.0,87487.0,0.01143026]
[1764553774078,0.00139497,87490.0,87488.0,0.22860277]
[1764553774868,0.01143092,87482.0,87475.0,0.01143183]
[1764553775062,0.01143066,87484.0,87477.0,0.01143157]
[1764553775379,0.01143066,87484.0,87480.0,0.01143118]
[1764553775559,0.00139497,87490.0,87482.0,0.01143092]
[1764553775766,0.00139497,87490.0,87487.0,0.01143026]
[1764553776077,0.00039497,87490.0,87487.0,0.01143026]
[1764553776305,0.01143013,87488.0,87485.0,0.10874667]
[1764553776522,0.00039497,87490.0,87489.0,0.01189]
[1764553776833,0.00039497,87490.0,87488.0,0.02286027]
[1764553777271,0.00139497,87490.0,87487.0,0.001]
[1764553777495,0.01282484,87490.0,87487.0,0.001]
[1764553777901,0.01143026,87487.0,87478.0,0.10128819]
[1764553778059,0.01143013,87488.0,87484.0,0.01143066]
[1764553778263,0.01282484,87490.0,87480.0,0.01143118]
[1764553778620,0.00039497,87490.0,87484.0,0.01143066]
[1764553778767,0.01282484,87490.0,87489.0,0.001]
[1764553779105,0.0114304,87486.0,87482.0,0.01143092]
[1764553779262,0.01143092,87482.0,87480.0,0.001]
[1764553779462,0.03938066,87484.0,87480.0,0.001]
[1764553779664,0.01143092,87482.0,87464.0,0.03433329]
[1764553779874,0.01143314,87465.0,87457.0,0.01143419]
[1764553780057,0.01143327,87464.0,87454.0,0.01862]
[1764553780263,0.26204008,87464.0,87457.0,0.01143419]
[1764553780459,0.01143366,87461.0,87455.0,0.22868689]
[1764553780661,0.22870169,87451.0,87445.0,0.01189]
[1764553780940,0.22871232,87447.0,87445.0,0.01189]
[1764553781134,0.01143575,87445.0,87442.0,0.00229405]
[1764553781339,0.25667042,87443.0,87442.0,0.00229405]
[1764553781700,0.29877042,87443.0,87442.0,0.00229405]
[1764553782434,0.31017042,87443.0,87442.0,0.00229405]
[1764553783735,0.31117042,87443.0,87442.0,0.00329405]
[1764553784670,0.31017042,87443.0,87442.0,0.00229405]
[1764553784892,0.31117042,87443.0,87442.0,0.00329405]
[1764553787886,0.63417042,87443.0,87442.0,0.00329405]
[1764553788858,0.62277042,87443.0,87442.0,0.00329405]
[1764553789091,0.63417042,87443.0,87442.0,0.00329405]
[1764553790163,0.24019519,87429.0,87421.0,0.22877798]
[1764553790363,0.00724,87436.0,87425.0,0.33751175]
[1764553790575,0.01143759,87431.0,87428.0,0.00043795]
[1764553790771,0.01143798,87428.0,87412.0,0.01144007]
[1764553791000,0.01143811,87427.0,87423.0,0.01143863]
[1764553791357,0.01143837,87425.0,87420.0,0.01143902]
[1764553791556,0.01143837,87425.0,87421.0,0.002]
[1764553791757,0.01143837,87425.0,87421.0,0.01243889]
[1764553791961,0.01143811,87427.0,87423.0,0.01143863]
[1764553792086,0.002,87427.0,87426.0,0.12018491]
[1764553792443,0.01143772,87430.0,87426.0,0.12018491]
[1764553792655,0.01143785,87429.0,87426.0,0.12018491]
[1764553792847,0.01143772,87430.0,87426.0,0.12018491]
[1764553793414,0.01143785,87429.0,87426.0,0.10874667]
[1764553793614,0.24019721,87429.0,87426.0,0.10874667]
[1764553794004,0.24019721,87429.0,87426.0,0.10974667]
[1764553794210,0.002,87427.0,87426.0,0.10974667]
[1764553794422,0.24220039,87427.0,87410.0,0.77089179]
[1764553794618,0.01143824,87426.0,87417.0,0.01143942]
[1764553794830,0.24119721,87429.0,87424.0,0.0114385]
[1764553795025,0.2452,87438.0,87425.0,0.01143837]
[1764553795026,0.01143732,87433.0,87425.0,0.01143837]
[1764553795243,0.2452,87438.0,87425.0,0.01143837]
[1764553795244,0.2452,87438.0,87435.0,0.01143706]
[1764553795448,0.2452,87438.0,87428.0,0.01143798]
[1764553795647,0.2452,87438.0,87430.0,0.01143772]
[1764553795882,0.25663667,87438.0,87430.0,0.01181309]
[1764553796089,0.01143693,87436.0,87430.0,0.01143772]
[1764553796288,0.24017776,87436.0,87430.0,0.01143772]
[1764553796497,0.01143837,87425.0,87421.0,0.01143889]
[1764553796708,0.01143889,87421.0,87416.0,0.01143955]
[1764553796938,0.01143916,87419.0,87411.0,0.3375501]
[1764553797209,0.01143916,87419.0,87415.0,0.24023305]
[1764553797411,0.01143902,87420.0,87415.0,0.24023305]
[1764553797648,0.01143942,87417.0,87411.0,0.10874667]
[1764553797850,0.01143942,87417.0,87413.0,0.01143994]
[1764553798070,0.01143902,87420.0,87414.0,0.01143981]
[1764553798390,0.01143955,87416.0,87412.0,0.001]
[1764553798581,0.01143955,87416.0,87411.0,0.10874667]
[1764553798582,0.01143981,87414.0,87411.0,0.10874667]
[1764553798872,0.01143968,87415.0,87411.0,0.12018687]
[1764553799176,0.22879897,87413.0,87411.0,0.10874667]
[1764553799502,0.01143981,87414.0,87411.0,0.10874667]
[1764553799647,0.01143968,87415.0,87411.0,0.12018687]
[1764553800050,0.01143981,87414.0,87411.0,0.10874667]